bitfinex/quotes_SOLUSD_20250919
["timestamp","ask_amount","ask_price","bid_price","bid_amount"]
[1758296611652,0.09,238.09,238.08,22.48379725]
[1758296612261,0.1,238.11,238.09,13.59559401]
[1758296612468,0.1,238.11,238.1,16.32154035]
[1758296612669,0.1,238.11,238.1,16.98154035]
[1758296613450,0.1,238.11,238.1,22.86315318]
[1758296613661,0.1,238.11,238.1,16.35728244]
[1758296613968,0.1,238.11,238.1,15.93729084]
[1758296614150,0.1,238.11,238.1,18.24324558]
[1758296614352,0.1,238.11,238.1,15.93729084]
[1758296614550,0.1,238.11,238.1,15.27729084]
[1758296615082,0.1,238.11,238.1,14.25559401]
[1758296615376,0.1,238.11,238.1,13.59559401]
[1758296619258,0.1,238.11,238.1,14.25559401]
[1758296620475,0.1,238.11,238.1,13.59559401]
[1758296621884,0.1,238.11,238.1,15.90154875]
[1758296622587,0.1,238.11,238.1,16.56154875]
[1758296622788,0.1,238.11,238.1,15.90154875]
[1758296623990,0.1,238.11,238.1,13.59559401]
[1758296624294,2.44240415,238.11,238.1,13.59559401]
[1758296624467,33.64240415,238.11,238.1,13.59559401]
[1758296624787,36.42080325,238.11,238.02,13.59559401]
[1758296624993,31.2,238.08,237.98,13.59559401]
[1758296625178,0.66,238.07,237.98,15.90154875]
[1758296625370,0.66,238.06,237.98,15.90154875]
[1758296625568,31.2,238.03,237.98,15.90154875]
[1758296625771,31.2,238.03,238.0,13.59559401]
[1758296626672,0.66,238.08,238.02,13.59559401]
[1758296626872,0.76,238.11,238.06,13.59559401]
[1758296627188,0.76,238.11,238.04,13.59559401]
[1758296627391,0.76,238.11,238.06,1.4764886]
[1758296627696,31.2,238.09,238.06,1.4764886]
[1758296627992,0.66,238.09,238.04,13.59559401]
[1758296628191,0.66,238.09,238.06,13.59559401]
[1758296629078,0.1,238.11,238.08,13.59559401]
[1758296629287,0.1,238.11,238.1,13.59559401]
[1758296629498,0.1,238.11,238.03,0.66]
[1758296629673,0.1,238.11,238.06,13.59559401]
[1758296630075,0.66,238.1,238.06,13.59559401]
[1758296630400,0.66,238.09,238.06,13.59559401]
[1758296630697,0.1,238.11,238.06,14.25559401]
[1758296630871,0.76,238.11,238.06,14.25559401]
[1758296631896,0.76,238.11,238.06,15.73208261]
[1758296632904,0.66,238.1,238.06,15.07208261]
[1758296633089,0.66,238.1,238.06,13.59559401]
[1758296633443,0.1,238.11,238.08,15.07208261]
[1758296633701,0.1,238.11,238.1,13.59559401]
[1758296634499,0.1,238.11,238.1,14.25559401]
[1758296636676,0.1,238.11,238.06,0.42006216]
[1758296636889,0.1,238.11,238.09,13.59559401]
[1758296637483,0.75,238.11,238.07,13.59559401]
[1758296637801,0.65,238.1,238.07,13.59559401]
[1758296638103,0.1,238.11,238.07,0.69]
[1758296638492,0.1,238.11,238.07,2.1664886]
[1758296638715,0.1,238.11,238.09,13.59559401]
[1758296640292,0.1,238.11,238.09,14.25559401]
[1758296640781,0.1,238.11,238.09,13.59559401]
[1758296640985,0.1,238.11,238.07,0.66]
[1758296641204,0.1,238.11,238.09,13.59559401]
[1758296641584,0.1,238.11,238.09,14.25559401]
[1758296642079,0.1,238.11,238.09,15.07208261]
[1758296642687,0.1,238.11,238.09,15.73208261]
[1758296644606,0.1,238.11,238.09,15.07208261]
[1758296644812,0.1,238.11,238.09,1.4764886]
[1758296645015,0.1,238.11,238.09,2.1364886]
[1758296645890,0.1,238.11,238.09,1.4764886]
[1758296647790,0.1,238.11,238.1,13.59559401]
[1758296648492,0.1,238.11,238.1,14.25559401]
[1758296649085,0.1,238.11,238.1,20.35199021]
[1758296649894,0.1,238.11,238.1,22.03375775]
[1758296651594,0.1,238.11,238.1,16.15207421]
[1758296651911,0.1,238.11,238.1,15.73208261]
[1758296652597,0.1,238.11,238.1,17.41385015]
[1758296652792,0.1,238.11,238.1,21.61376615]
[1758296653009,0.1,238.11,238.1,22.03375775]
[1758296653612,0.1,238.11,238.1,17.83384175]
[1758296653812,0.1,238.11,238.1,16.15207421]
[1758296654013,0.1,238.11,238.1,17.83384175]
[1758296654811,0.1,238.11,238.1,22.03375775]
[1758296655002,0.1,238.12,238.1,100.63375775]
[1758296655207,0.1,238.12,238.11,14.25559401]
[1758296656111,0.1,238.12,238.11,18.45533362]
[1758296656308,0.1,238.12,238.11,18.87530758]
[1758296660201,0.1,238.12,238.11,97.47530758]
[1758296660502,0.1,238.12,238.11,97.05533362]
[1758296664128,0.77,238.12,238.11,13.59559401]
[1758296664429,0.77,238.12,238.11,15.07208261]
[1758296664616,0.1,238.12,238.11,15.07208261]
[1758296664827,0.1,238.12,238.11,13.59559401]
[1758296665020,0.1,238.12,238.11,15.07208261]
[1758296665941,0.1,238.12,238.11,19.27182222]
[1758296666137,0.1,238.12,238.11,19.98182222]
[1758296667037,0.1,238.12,238.11,20.40179618]
[1758296668740,0.1,238.13,238.12,13.59559401]
[1758296669040,0.1,238.13,238.12,98.58164585]
[1758296669439,0.1,238.16,238.12,36.6708315]
[1758296669615,0.1,238.16,238.14,13.59559401]
[1758296669935,0.1,238.16,238.13,1.12993868]
[1758296669936,0.1,238.16,238.15,15.07208261]
[1758296670121,0.82,238.16,238.15,15.07208261]
[1758296670435,0.82,238.16,238.15,13.59559401]
[1758296670822,0.82,238.16,238.09,1.4764886]
[1758296671024,0.72,238.15,238.03,4.91100829]
[1758296671334,0.72,238.14,238.09,1.4764886]
[1758296671634,0.72,238.13,238.09,1.4764886]
[1758296671838,0.72,238.12,238.09,1.4764886]
[1758296672140,0.72,238.11,238.09,1.4764886]
[1758296672440,0.1,238.16,238.03,4.91100829]
[1758296672648,0.72,238.1,238.0,16.97260362]
[1758296672940,0.72,238.09,238.03,13.59559401]
[1758296673238,0.72,238.08,238.03,13.59559401]
[1758296673542,0.72,238.07,238.02,13.59559401]
[1758296673846,0.72,238.09,238.05,13.59559401]
[1758296674136,0.72,238.09,238.03,0.71]
[1758296674436,0.72,238.09,238.05,1.4764886]
[1758296674821,0.72,238.09,238.04,15.07208261]
[1758296675143,2.781241,238.15,238.04,13.59559401]
[1758296675144,0.72,238.08,238.04,13.59559401]
[1758296675634,0.72,238.07,238.01,13.59559401]
[1758296675840,0.72,238.06,238.01,13.59559401]
[1758296676144,0.72,238.05,238.01,13.59559401]
[1758296676313,0.72,238.05,238.0,13.59559401]
[1758296676518,2.781241,238.14,238.0,13.59559401]
[1758296676519,0.72,238.08,238.03,13.59559401]
[1758296676823,0.72,238.08,238.02,13.59559401]
[1758296677928,0.72,238.07,237.96,13.59559401]
[1758296678120,3.57655126,238.16,237.98,13.59559401]
[1758296678121,0.72,238.06,237.98,13.59559401]
[1758296678341,0.72,238.06,237.98,15.07208261]
[1758296678522,0.72,238.06,237.98,13.59559401]
[1758296678730,0.72,238.06,237.98,15.07208261]
[1758296679236,0.72,238.06,238.0,13.59559401]
[1758296681236,31.2,238.12,238.0,15.07208261]
[1758296681445,0.72,238.07,238.01,13.59559401]
[1758296681655,31.92,238.11,238.04,1.4764886]
[1758296681947,0.72,238.1,238.06,13.59559401]
[1758296682120,3.57655126,238.18,238.06,13.59559401]
[1758296682121,0.72,238.09,238.06,13.59559401]
[1758296682466,0.72,238.08,238.03,13.59559401]
[1758296682640,12.61856191,238.17,238.02,13.59559401]
[1758296682641,0.72,238.07,238.02,13.59559401]
[1758296682820,0.72,238.06,238.0,13.59559401]
[1758296683354,0.72,238.08,238.0,0.71]
[1758296683652,0.72,238.08,238.02,13.59559401]
[1758296684035,3.49806497,238.11,238.04,13.59559401]
[1758296684354,0.72,238.11,238.04,15.78208261]
[1758296684651,0.72,238.13,238.07,13.59559401]
[1758296685422,0.72,238.13,238.07,15.07208261]
[1758296685822,2.77653082,238.15,238.1,13.59559401]
[1758296686043,0.1,238.16,238.12,13.59559401]
[1758296687559,0.72,238.15,238.1,13.59559401]
[1758296687731,0.72,238.15,238.09,13.59559401]
[1758296688652,0.72,238.14,238.07,13.59559401]
[1758296690555,0.72,238.13,238.07,13.59559401]
[1758296691355,31.92,238.13,238.07,13.59559401]
[1758296691837,0.72,238.13,238.07,13.59559401]
[1758296692330,0.72,238.15,238.07,0.71]
[1758296692525,31.2,238.13,238.07,0.71]
[1758296692929,0.72,238.13,238.05,14.30559401]
[1758296693148,0.72,238.12,238.03,14.30559401]
[1758296693359,0.72,238.11,238.03,14.30559401]
[1758296694533,31.2,238.13,238.03,14.30559401]
[1758296694534,0.72,238.1,238.03,14.30559401]
[1758296698046,0.66,238.09,238.03,13.59559401]
[1758296698448,2.77599555,238.11,238.04,0.71]
[1758296700055,3.43599555,238.11,238.04,0.71]
[1758296700429,3.43599555,238.11,238.02,13.59559401]
[1758296700633,2.77599555,238.11,238.04,15.90079313]
[1758296700832,3.57655126,238.16,237.94,0.28432314]
[1758296700833,0.1,238.16,238.07,13.59559401]
[1758296701049,0.1,238.16,238.09,13.59559401]
[1758296701242,0.1,238.16,238.1,0.71]
[1758296701442,0.1,238.16,238.11,13.59559401]
[1758296701660,2.87412381,238.16,238.13,13.59559401]
[1758296701867,0.1,238.16,238.14,0.71]
[1758296702076,0.1,238.16,238.15,13.59559401]
[1758296702367,0.1,238.16,238.15,0.71]
[1758296703473,0.1,238.16,238.15,14.30559401]
[1758296703642,0.1,238.16,238.15,16.61079313]
[1758296704369,0.1,238.16,238.15,14.30559401]
[1758296705448,0.1,238.16,238.15,16.61079313]
[1758296706047,0.1,238.16,238.15,14.30559401]
[1758296706244,0.1,238.16,238.15,16.61079313]
[1758296707453,0.1,238.16,238.15,14.30559401]
[1758296709072,0.1,238.16,238.15,13.59559401]
[1758296709854,0.1,238.16,237.98,10.50495835]
[1758296709855,0.76,238.16,238.06,0.71]
[1758296710263,0.76,238.16,238.07,13.59559401]
[1758296710463,0.66,238.15,238.02,0.71]
[1758296710752,31.2,238.11,238.02,0.71]
[1758296710949,33.98075821,238.1,238.02,0.71]
[1758296711159,2.78075821,238.09,238.03,13.59559401]
[1758296711672,2.78075821,238.09,238.03,0.71]
[1758296712675,2.78111939,238.09,238.04,13.59559401]
[1758296712877,2.78111939,238.11,238.06,13.59559401]
[1758296713174,2.78111939,238.11,238.08,13.59559401]
[1758296713477,0.66,238.11,238.04,0.71]
[1758296713674,0.66,238.11,238.05,13.59559401]
[1758296713979,0.66,238.12,238.05,13.59559401]
[1758296714773,2.78111939,238.14,238.07,13.59559401]
[1758296714961,2.78111939,238.14,238.09,15.90079313]
[1758296715161,2.78111939,238.14,238.03,4.20107794]
[1758296715162,0.1,238.16,238.11,13.59559401]
[1758296715370,31.3,238.16,238.12,0.71]
[1758296715565,2.78111939,238.15,238.12,0.71]
[1758296715877,2.78111939,238.15,238.13,13.59559401]
[1758296716051,0.1,238.16,238.13,0.71]
[1758296716449,0.1,238.16,238.11,13.59559401]
[1758296716450,2.88111939,238.16,238.11,13.59559401]
[1758296716669,2.88111939,238.16,238.15,13.59559401]
[1758296716980,0.1,238.16,238.15,13.59559401]
[1758296717276,0.1,238.16,238.15,14.30559401]
[1758296721460,0.1,238.16,238.15,16.61079313]
[1758296723986,0.1,238.16,238.15,3.01519912]
[1758296724279,0.1,238.16,238.15,0.71]
[1758296724485,0.1,238.16,238.15,3.01519912]
[1758296724860,0.1,238.16,238.15,0.71]
[1758296725166,0.1,238.16,238.15,3.01519912]
[1758296726281,0.1,238.16,238.12,13.59559401]
[1758296726578,0.1,238.16,238.09,0.71]
[1758296726760,0.82,238.16,238.1,13.59559401]
[1758296726959,0.1,238.16,238.12,13.59559401]
[1758296727172,0.1,238.16,238.14,13.59559401]
[1758296727687,0.1,238.16,238.15,14.30559401]
[1758296730264,0.1,238.16,238.15,16.61079313]
[1758296733097,0.1,238.16,238.15,20.80982735]
[1758296733271,0.1,238.16,238.15,16.61079313]
[1758296736972,0.1,238.16,238.15,20.80982735]
[1758296738677,0.1,238.16,238.15,21.22973077]
[1758296739204,0.1,238.18,238.16,13.59559401]
[1758296739375,0.1,238.18,238.17,16.32066129]
[1758296739696,0.1,238.18,238.17,16.61079313]
[1758296743576,0.1,238.18,238.17,20.80947474]
[1758296743995,0.1,238.18,238.17,16.61079313]
[1758296746990,0.1,238.18,238.17,20.80947474]
[1758296747312,0.1,238.18,238.17,13.59559401]
[1758296747594,0.1,238.18,238.17,15.90079313]
[1758296747796,0.1,238.18,238.17,15.77954798]
[1758296748201,0.1,238.18,238.17,15.06954798]
[1758296748879,0.1,238.18,238.17,13.59559401]
[1758296749307,0.1,238.18,238.17,15.06954798]
[1758296749681,0.1,238.18,238.17,19.97822959]
[1758296750801,0.1,238.18,238.17,15.77954798]
[1758296752110,0.1,238.18,238.17,15.06954798]
[1758296752490,0.1,238.18,238.17,15.77954798]
[1758296753538,0.1,238.18,238.17,13.59559401]
[1758296753719,32.02,238.18,238.17,13.59559401]
[1758296755107,32.02,238.18,238.09,13.59559401]
[1758296755411,3.51026681,238.17,238.09,13.59559401]
[1758296755589,0.72,238.16,238.09,13.59559401]
[1758296755910,0.72,238.15,238.09,13.59559401]
[1758296756808,3.51020417,238.17,238.11,13.59559401]
[1758296757007,0.72,238.17,238.11,13.59559401]
[1758296757182,3.51059352,238.17,238.11,13.59559401]
[1758296762394,3.51059352,238.17,238.0,47.59989066]
[1758296762395,6.98435978,238.16,237.91,0.3]
[1758296762599,31.2,238.13,238.02,13.59559401]
[1758296762894,6.98435978,238.12,238.01,0.7]
[1758296763095,6.98435978,238.12,238.02,13.59559401]
[1758296763096,2.79059352,238.11,238.02,13.59559401]
[1758296763317,0.7,238.1,238.02,13.59559401]
[1758296763621,3.49059352,238.1,238.02,13.59559401]
[1758296763800,0.7,238.09,238.02,13.59559401]
[1758296764419,2.79059352,238.1,238.02,13.59559401]
[1758296764714,0.7,238.08,238.02,13.59559401]
[1758296764918,0.7,238.08,238.0,13.59559401]
[1758296765220,0.7,238.08,238.0,14.29559401]
[1758296765417,2.79059352,238.1,238.02,13.59559401]
[1758296765625,3.49059352,238.11,238.04,13.59559401]
[1758296765803,2.79059352,238.11,238.04,13.59559401]
[1758296766122,0.7,238.1,238.02,13.59559401]
[1758296767300,0.7,238.09,237.99,13.59559401]
[1758296767622,2.79059352,238.11,237.97,1.47395397]
[1758296767623,0.7,238.08,237.97,0.7]
[1758296767816,0.7,238.08,237.98,13.59559401]
[1758296768123,0.7,238.07,237.98,13.59559401]
[1758296768325,0.7,238.06,237.95,13.59559401]
[1758296768502,0.7,238.05,237.92,0.7]
[1758296768830,0.7,238.05,237.93,13.59559401]
[1758296768996,2.79059352,238.06,237.95,15.06954798]
[1758296769204,2.79059352,238.06,237.91,0.3]
[1758296769205,31.2,238.07,238.01,13.59559401]
[1758296769419,31.2,238.07,238.02,0.7]
[1758296769625,0.7,238.09,238.02,0.7]
[1758296771423,0.7,238.09,238.01,13.59559401]
[1758296771623,0.7,238.08,238.01,13.59559401]
[1758296771830,0.7,238.07,237.97,13.59559401]
[1758296772015,0.7,238.06,237.97,13.59559401]
[1758296772214,0.7,238.05,237.97,13.59559401]
[1758296772426,6.25902213,238.11,237.97,13.59559401]
[1758296772731,31.2,238.07,237.97,13.59559401]
[1758296772928,3.48178761,238.06,237.97,13.59559401]
[1758296773229,0.7,238.05,237.97,13.59559401]
[1758296773621,0.7,238.04,237.97,13.59559401]
[1758296773822,0.7,238.03,237.97,13.59559401]
[1758296774021,0.7,238.02,237.94,13.59559401]
[1758296774214,0.7,238.01,237.94,13.59559401]
[1758296774417,0.7,238.0,237.91,0.3]
[1758296774623,0.7,238.0,237.92,13.59559401]
[1758296774822,0.7,237.99,237.92,13.59559401]
[1758296777035,1.10119998,237.97,237.94,13.59559401]
[1758296777204,1.10119998,237.97,237.96,13.59559401]
[1758296777628,1.10119998,237.97,237.96,0.7]
[1758296778140,1.10119998,237.97,237.94,0.7]
[1758296778614,1.10119998,237.97,237.95,13.59559401]
[1758296778812,1.10119998,237.97,237.91,1.77395397]
[1758296779040,1.10119998,237.97,237.95,0.7]
[1758296779336,1.10119998,237.97,237.96,0.7]
[1758296779539,1.10119998,237.97,237.91,0.3]
[1758296779706,1.10119998,237.97,237.92,13.59559401]
[1758296779908,1.10119998,237.97,237.91,1.0]
[1758296779909,1.10119998,237.97,237.91,13.89559401]
[1758296779911,1.80119998,237.97,237.91,13.89559401]
[1758296780141,0.7,237.96,237.91,13.89559401]
[1758296780322,0.7,237.95,237.91,0.3]
[1758296780704,1.80119998,237.95,237.91,0.3]
[1758296780921,1.10119998,237.95,237.91,0.3]
[1758296781610,1.80119998,237.95,237.91,0.3]
[1758296782637,1.10119998,237.95,237.91,0.3]
[1758296783022,1.80119998,237.95,237.91,0.3]
[1758296783242,0.7,237.94,237.91,0.3]
[1758296783730,1.10119998,237.95,237.91,1.0]
[1758296783940,1.10119998,237.95,237.92,13.59559401]
[1758296784115,1.10119998,237.95,237.91,0.3]
[1758296784630,1.80119998,237.95,237.91,0.3]
[1758296784830,1.10119998,237.95,237.91,0.3]
[1758296785020,0.7,237.94,237.91,0.3]
[1758296785415,0.67,237.93,237.91,0.3]
[1758296786604,1.10119998,237.93,237.91,0.3]
[1758296787432,1.10119998,237.93,237.89,13.87541819]
[1758296787621,1.10119998,237.93,237.89,14.53541819]
[1758296789058,1.77119998,237.93,237.89,0.27982418]
[1758296789206,1.10119998,237.93,237.89,0.27982418]
[1758296790319,1.10119998,237.93,237.9,0.66]
[1758296790627,1.10119998,237.93,237.91,0.66]
[1758296791516,1.10119998,237.93,237.92,13.59559401]
[1758296791717,1.10119998,237.93,237.92,0.66]
[1758296791950,1.10119998,237.93,237.89,0.93982418]
[1758296792127,1.77119998,237.93,237.9,13.59559401]
[1758296792319,0.67,237.92,237.89,0.27982418]
[1758296793216,0.94000001,237.92,237.89,0.27982418]
[1758296793446,0.67,237.92,237.89,0.27982418]
[1758296794046,31.87,237.92,237.89,0.27982418]
[1758296794432,2.76274769,237.91,237.89,0.27982418]
[1758296795237,33.96274769,237.91,237.89,0.27982418]
[1758296795532,31.2,237.91,237.89,0.27982418]
[1758296796337,2.76515614,237.9,237.89,0.27982418]
[1758296797856,3.43515614,237.9,237.89,0.27982418]
[1758296798951,7.0375562,237.9,237.89,0.27982418]
[1758296799358,3.43515614,237.9,237.89,0.27982418]
[1758296799517,31.87,237.9,237.89,0.27982418]
[1758296799744,34.63515614,237.9,237.89,0.27982418]
[1758296800429,38.11239066,237.9,237.89,0.27982418]
[1758296800741,56.74664284,237.9,237.89,0.27982418]
[1758296802220,58.43117254,237.9,237.89,0.27982418]
[1758296803147,78.43117254,237.9,237.89,0.27982418]
[1758296803328,20.0,237.88,237.87,0.2]
[1758296803547,2.76515614,237.88,237.87,0.2]
[1758296803727,54.63515614,237.88,237.87,0.2]
[1758296804046,75.65578075,237.88,237.87,0.2]
[1758296804941,80.23398881,237.88,237.87,0.2]
[1758296805555,82.52309284,237.88,237.87,0.2]
[1758296805749,20.0,237.86,237.85,0.2]
[1758296805945,22.76515614,237.86,237.85,0.2]
[1758296806133,44.34243525,237.86,237.85,0.2]
[1758296806338,46.02753267,237.86,237.83,0.2]
[1758296806652,2.76515614,237.85,237.83,0.2]
[1758296807154,24.53068186,237.85,237.83,0.2]
[1758296807750,31.39799395,237.85,237.83,0.2]
[1758296808363,20.0,237.84,237.83,0.2]
[1758296808661,7.37731918,237.84,237.83,0.2]
[1758296808846,2.76515614,237.84,237.83,0.2]
[1758296809057,4.45018257,237.84,237.83,0.2]
[1758296809557,35.65018257,237.84,237.83,0.2]
[1758296809754,35.65018257,237.84,237.83,0.86]
[1758296809755,4.45018257,237.84,237.83,0.86]
[1758296810333,2.76515614,237.84,237.83,0.86]
[1758296810962,6.22522158,237.84,237.83,0.2]
[1758296811262,34.63515614,237.84,237.83,0.2]
[1758296811468,39.24731918,237.84,237.83,0.2]
[1758296811643,33.96515614,237.84,237.83,0.2]
[1758296812739,39.24731918,237.84,237.83,0.2]
[1758296812937,34.63515614,237.84,237.83,0.2]
[1758296813235,31.2,237.83,237.79,0.2]
[1758296813577,34.66232243,237.8,237.79,0.86]
[1758296813856,3.46232243,237.82,237.8,0.66]
[1758296814046,2.77045239,237.81,237.8,0.66]
[1758296814245,33.97045239,237.83,237.8,0.66]
[1758296814443,15.40815064,237.82,237.8,0.66]
[1758296814642,2.77045239,237.81,237.8,0.66]
[1758296816161,31.2,237.8,237.79,0.2]
[1758296816357,33.97045239,237.8,237.79,0.91]
[1758296816772,34.63045239,237.8,237.79,0.2]
[1758296816950,37.43277482,237.8,237.79,0.2]
[1758296817261,2.77045239,237.8,237.79,0.2]
[1758296817632,33.97045239,237.8,237.79,0.2]
[1758296817861,33.97045239,237.8,237.79,0.91]
[1758296818744,2.77045239,237.8,237.79,0.91]
[1758296819567,31.2,237.8,237.79,0.91]
[1758296819744,33.97045239,237.8,237.79,0.91]
[1758296820553,33.97045239,237.8,237.79,0.2]
[1758296820965,37.43874564,237.8,237.79,0.2]
[1758296821262,50.07334571,237.8,237.79,0.2]
[1758296821460,46.60505246,237.8,237.79,0.2]
[1758296821839,46.60505246,237.8,237.79,0.89]
[1758296822049,48.29007889,237.8,237.79,0.89]
[1758296822258,46.60505246,237.8,237.79,0.89]
[1758296822462,46.60505246,237.8,237.79,0.2]
[1758296823463,50.07334571,237.8,237.79,0.2]
[1758296824743,37.43874564,237.8,237.79,0.2]
[1758296824946,37.43874564,237.8,237.79,0.89]
[1758296825571,6.23874564,237.8,237.79,14.48559401]
[1758296825750,1.10119998,237.81,237.79,14.48559401]
[1758296825949,1.10119998,237.81,237.8,0.69]
[1758296826448,31.2,237.84,237.8,0.69]
[1758296827062,31.2,237.85,237.81,0.69]
[1758296827271,31.2,237.85,237.82,0.69]
[1758296827948,31.2,237.85,237.79,13.79559401]
[1758296827949,31.2,237.81,237.79,0.2]
[1758296828283,34.66829325,237.81,237.79,0.2]
[1758296828456,18.55209362,237.8,237.79,0.2]
[1758296828848,20.23733303,237.8,237.79,0.2]
[1758296830476,16.76903978,237.8,237.79,0.2]
[1758296830658,16.10903978,237.8,237.79,0.2]
[1758296831050,16.76903978,237.8,237.79,0.2]
[1758296831585,16.10903978,237.8,237.79,0.2]
[1758296832073,16.76903978,237.8,237.79,0.2]
[1758296833568,20.23733303,237.8,237.79,0.2]
[1758296833971,36.76903978,237.8,237.79,0.2]
[1758296834183,36.76903978,237.8,237.71,0.1]
[1758296834184,31.2,237.77,237.71,0.1]
[1758296834357,3.47689329,237.76,237.71,0.1]
[1758296834555,4.13689329,237.76,237.71,0.1]
[1758296834881,31.2,237.73,237.71,0.1]
[1758296835576,1.10119998,237.72,237.71,0.1]
[1758296835781,32.30119998,237.72,237.71,0.1]
[1758296836105,33.98679447,237.72,237.71,0.1]
[1758296837566,34.64679447,237.72,237.71,0.1]
[1758296837872,37.4326483,237.72,237.71,0.1]
[1758296838377,40.90954159,237.72,237.71,0.1]
[1758296840006,40.24954159,237.72,237.71,0.1]
[1758296841093,40.90954159,237.72,237.71,0.1]
[1758296841307,39.2239471,237.72,237.71,0.1]
[1758296841611,35.74705381,237.72,237.71,0.1]
[1758296844211,4.54705381,237.72,237.66,0.69]
[1758296844403,31.2,237.68,237.61,13.89559401]
[1758296844712,37.47478572,237.68,237.62,0.69]
[1758296844916,34.64585383,237.68,237.61,0.3]
[1758296845598,3.44585383,237.68,237.61,0.3]
[1758296845792,48.88215514,237.68,237.61,0.3]
[1758296846132,5.13208783,237.68,237.61,0.3]
[1758296846412,23.62835083,237.68,237.61,0.3]
[1758296847698,23.62835083,237.68,237.62,0.65]
[1758296847699,28.32682173,237.68,237.62,0.65]
[1758296848012,23.67835083,237.68,237.62,0.65]
[1758296848211,21.99211683,237.68,237.62,0.65]
[1758296849190,21.99211683,237.68,237.61,0.3]
[1758296849387,26.64058773,237.68,237.61,0.3]
[1758296849609,20.0,237.67,237.61,0.3]
[1758296849826,7.43379828,237.66,237.61,0.3]
[1758296850022,21.94048111,237.66,237.61,0.3]
[1758296850793,31.2,237.62,237.61,0.3]
[1758296851011,2.78585383,237.62,237.61,0.3]
[1758296851188,3.49585383,237.62,237.61,0.3]
[1758296851395,23.65058716,237.62,237.61,0.3]
[1758296851992,22.94058716,237.62,237.61,0.3]
[1758296852197,26.42466289,237.62,237.61,0.3]
[1758296852507,24.73793114,237.62,237.61,0.3]
[1758296853927,25.44793114,237.62,237.61,0.3]
[1758296855011,21.25385541,237.62,237.61,0.3]
[1758296855521,21.96385541,237.62,237.61,0.3]
[1758296855912,25.44793114,237.62,237.61,0.3]
[1758296856119,21.96385541,237.62,237.61,0.3]
[1758296856311,25.44236806,237.62,237.61,0.3]
[1758296856623,24.73236806,237.62,237.61,0.3]
[1758296856829,21.25216446,237.62,237.61,0.3]
[1758296856999,21.96216446,237.62,237.61,0.3]
[1758296857728,21.25216446,237.62,237.61,0.3]
[1758296859012,52.45216446,237.62,237.61,0.3]
[1758296859216,52.45216446,237.62,237.61,0.95]
[1758296859504,21.25216446,237.62,237.61,0.95]
[1758296860512,21.25216446,237.62,237.61,0.3]
[1758296861237,21.25216446,237.62,237.61,0.95]
[1758296861607,21.25216446,237.62,237.61,0.3]
[1758296861808,21.25216446,237.62,237.61,0.95]
[1758296863540,21.25216446,237.62,237.61,0.3]
[1758296867235,21.96216446,237.62,237.61,0.3]
[1758296867737,25.44236806,237.62,237.61,0.3]
[1758296868236,41.96216446,237.62,237.61,0.3]
[1758296868731,31.2,237.59,237.55,0.2]
[1758296869044,31.2,237.57,237.55,0.2]
[1758296869333,33.98416288,237.56,237.55,0.2]
[1758296869528,51.02086402,237.56,237.55,0.2]
[1758296870242,51.02086402,237.56,237.55,0.85]
[1758296871116,48.23670114,237.56,237.55,0.85]
[1758296872232,51.02517647,237.56,237.55,0.85]
[1758296873227,51.02517647,237.56,237.55,14.44559401]
[1758296874130,48.23670114,237.56,237.55,14.44559401]
[1758296874807,17.03670114,237.56,237.55,14.44559401]
[1758296875817,48.23670114,237.56,237.55,14.44559401]
[1758296876229,19.82916198,237.56,237.55,14.44559401]